[Event "World Senior chT-65 2019"]
[Site "Rhodes"]
[Date "2019.04.17"]
[Round "2.47"]
[White "Lundgren, Ulf"]
[Black "Serjmyadag, Damdin"]
[Result "1-0"]
[ECO "D53"]
[WhiteElo "1964"]
[BlackElo "1895"]
[Annotator "NA RC"]
[PlyCount "111"]
[EventDate "2019.04.16"]
[EventType "team-tourn"]
[EventCountry "GRE"]
[SourceTitle "playchess.com"]
[Source "ChessBase"]
[SourceQuality "1"]
[WhiteTeam "Sweden"]
[BlackTeam "Mongolia"]
[WhiteTeamCountry "SWE"]
[BlackTeamCountry "MGL"]
[TimeControl "40/5400+30:1800+30"]

1. d4 {[%emt 0:00:00]} e6 {[%emt 0:00:07]} 2. Nf3 {[%emt 0:00:00]} d5 {[%emt 0:01:02]} 3. c4 {[%emt 0:00:34]} Nf6 {[%emt 0:00:56]} 4. Bg5 {[%emt 0:00:25]} Be7 {[%emt 0:00:38]} 5. e3 {[%emt 0:00:19]} Ne4 {[%emt 0:03:26]} 6. Bxe7 {[%emt 0:00:11]} Qxe7 {[%emt 0:00:38]} 7. Nc3 {[%emt 0:01:28]} c6 {[%emt 0:02:26]} 8. Bd3 {[%emt 0:01:37]} f5 {[%emt 0:01:29]} 9. Ne5 {[%emt 0:09:39]} O-O {[%emt 0:02:44]} 10. a3 {[%emt 0:09:52]} Nd7 {[%emt 0:01:57]} 11. Nxd7 {[%emt 0:03:50]} Bxd7 {[%emt 0:00:22]} 12. O-O {[%emt 0:00:35]} Qg5 {[%emt 0:05:39]} 13. f4 {[%emt 0:08:09]} Qh4 {[%emt 0:04:13]} 14. Nxe4 {[%emt 0:01:30]} dxe4 {[%emt 0:05:06]} 15. Be2 {[%emt 0:01:04]} Rad8 {[%emt 0:03:04]} 16. Qe1 {[%emt 0:01:03]} Qe7 {[%emt 0:02:18]} 17. b4 {[%emt 0:00:38]} Kh8 {[%emt 0:02:32]} 18. Qc3 {[%emt 0:02:13]} Qf6 {[%emt 0:00:45]} 19. Rac1 {[%emt 0:03:13]} Rc8 {[%emt 0:04:51]} 20. c5 {[%emt 0:03:14]} Rg8 {[%emt 0:02:14]} 21. a4 {[%emt 0:11:08]} g5 {[%emt 0:08:04]} 22. Bc4 {[%emt 0:04:35]} gxf4 {[%emt 0:02:38]} 23. Rxf4 {[%emt 0:00:49]} Rg7 {[%emt 0:05:37]} 24. Rc2 {[%emt 0:01:16]} Rcg8 {[%emt 0:02:15]} 25. Qb2 {[%emt 0:01:13]} Re8 {[%emt 0:04:23]} 26. Rcf2 {[%emt 0:01:45]} Qe7 {[%emt 0:01:45]} 27. Rd2 {[%emt 0:01:15]} Reg8 {[%emt 0:03:14]} 28. Qa2 {[%emt 0:05:18]} Re8 {[%emt 0:03:56]} 29. Rf1 {[%emt 0:04:07]} Rg5 {[%emt 0:01:41]} 30. Qb2 {[%emt 0:00:41]} Qg7 {[%emt 0:00:12]} 31. b5 {[%emt 0:01:33]} h5 {[%emt 0:06:13]} 32. Rf4 {[%emt 0:02:32]} Kh7 {[%emt 0:00:23]} 33. Rdf2 {[%emt 0:05:10]} Re7 {[%emt 0:03:50]} 34. a5 {[%emt 0:02:56]} e5 {[%emt 0:02:41]} 35. Rh4 {[%emt 0:03:48]} exd4 {[%emt 0:02:47]} 36. exd4 {[%emt 0:04:18]} Kg6 {[%emt 0:05:17]} 37. b6 {[%emt 0:01:54]} Qf8 {[%emt 0:05:52]} 38. bxa7 {[%emt 0:01:14]} Qa8 {[%emt 0:00:07]} 39. Qb6 {[%emt 0:00:08]} Rg4 {[%emt 0:00:49]} 40. Rxg4+ {[%emt 0:00:00]} hxg4 {[%emt 0:00:00]} 41. Rb2 {[%emt 0:01:01]} Be8 {[%emt 0:01:08]} 42. d5 {[%emt 0:00:58]} Kg5 {[%emt 0:02:29]} 43. d6 {[%emt 0:00:57]} Rg7 {[%emt 0:04:46]} 44. g3 {[%emt 0:01:37]} Kf6 {[%emt 0:02:06]} 45. Rf2 {[%emt 0:01:03]} Bd7 {[%emt 0:02:09]} 46. Rb2 {[%emt 0:08:53]} Be6 {[%emt 0:03:14]} 47. Bxe6 {[%emt 0:01:20]} Kxe6 {[%emt 0:00:13]} 48. Kf2 {[%emt 0:00:07]} Rd7 {[%emt 0:02:51]} 49. Ke3 {[%emt 0:00:34]} Ke5 {[%emt 0:01:53]} 50. Rf2 {[%emt 0:01:41]} Rf7 {[%emt 0:02:23]} 51. Qb2+ {[%emt 0:00:55]} Ke6 {[%emt 0:00:15]} 52. Qb3+ {[%emt 0:00:26]} Kf6 {[%emt 0:01:17]} 53. Rxf5+ {[%emt 0:00:40]} Kxf5 {[%emt 0:00:15]} 54. Qxf7+ {[%emt 0:00:05]} Ke5 {[%emt 0:00:37]} 55. Qe7+ {[%emt 0:00:11]} Kd5 {[%emt 0:00:13]} 56. d7 {[%emt 0:00:10]} 1-0

[Event "World Senior chT-65 2019"]
[Site "Rhodes"]
[Date "2019.04.17"]
[Round "2.48"]
[White "Bujinlkham, Purevdorj"]
[Black "Andersson, Sven-Olof"]
[Result "1/2-1/2"]
[ECO "B41"]
[WhiteElo "1786"]
[BlackElo "1904"]
[Annotator "NA RC"]
[PlyCount "28"]
[EventDate "2019.04.16"]
[EventType "team-tourn"]
[EventCountry "GRE"]
[SourceTitle "playchess.com"]
[Source "ChessBase"]
[SourceQuality "1"]
[WhiteTeam "Mongolia"]
[BlackTeam "Sweden"]
[WhiteTeamCountry "MGL"]
[BlackTeamCountry "SWE"]
[TimeControl "40/5400+30:1800+30"]

1. e4 {[%emt 1:04:31]} c5 {[%emt 0:00:39]} 2. Nf3 {[%emt 0:00:08]} e6 {[%emt 0:00:41]} 3. d4 {[%emt 0:00:55]} cxd4 {[%emt 0:00:06]} 4. Nxd4 {[%emt 0:00:22]} a6 {[%emt 0:00:31]} 5. c4 {[%emt 0:03:15]} Qc7 {[%emt 0:01:48]} 6. Be2 {[%emt 0:02:15]} Nf6 {[%emt 0:03:32]} 7. Nc3 {[%emt 0:05:24]} Nc6 {[%emt 0:04:49]} 8. O-O {[%emt 0:04:45]} Nxd4 {[%emt 0:03:21]} 9. Qxd4 {[%emt 0:00:42]} Bd6 {[%emt 0:03:55]} 10. h3 {[%emt 0:06:57]} h5 {[%emt 0:07:41]} 11. Qd3 {[%emt 0:15:02]} b6 {[%emt 0:22:27]} 12. Kh1 {[%emt 0:10:23]} Bb7 {[%emt 0:13:04]} 13. f3 {[%emt 0:03:25]} h4 {[%emt 0:03:01]} 14. f4 {[%emt 0:09:20]} Bb4 {[%emt 0:06:22]} 1/2-1/2

[Event "World Senior chT-65 2019"]
[Site "Rhodes"]
[Date "2019.04.18"]
[Round "3.1"]
[White "Bellin, Robert"]
[Black "Sveshnikov, Evgeny"]
[Result "1/2-1/2"]
[ECO "B33"]
[WhiteElo "2315"]
[BlackElo "2481"]
[Annotator "ChessBase"]
[PlyCount "26"]
[EventDate "2019.04.16"]
[EventType "team-tourn"]
[EventCountry "GRE"]
[SourceTitle "playchess.com"]
[Source "ChessBase"]
[SourceQuality "1"]
[WhiteTeam "England"]
[BlackTeam "Russia"]
[WhiteTeamCountry "ENG"]
[BlackTeamCountry "RUS"]
[TimeControl "40/5400+30:1800+30"]

1. e4 {[%emt 0:00:20]} c5 {[%emt 0:00:00]} 2. Nf3 {[%emt 0:00:28]} Nc6 {[%emt 0:00:00]} 3. d4 {[%emt 0:00:33]} cxd4 {[%emt 0:00:00]} 4. Nxd4 {[%emt 0:00:06]} e5 {[%emt 0:02:05]} 5. Nf5 {[%emt 0:00:24]} Nf6 {[%emt 0:04:56]} 6. Nc3 {[%emt 0:00:16]} d5 {[%emt 0:00:14]} 7. exd5 {[%emt 0:00:13]} Bxf5 {[%emt 0:00:17]} 8. dxc6 {[%emt 0:00:06]} bxc6 {[%emt 0:00:35]} 9. Qf3 {[%emt 0:00:11]} Qd7 {[%emt 0:00:16]} 10. Bc4 {[%emt 0:00:08]} Be7 {[%emt 0:24:58]} 11. O-O {[%emt 0:00:46]} O-O {[%emt 0:04:35]} 12. Rd1 {[%emt 0:04:05]} Qc8 {[%emt 0:00:29]} 13. Re1 {[%emt 0:00:26]} Bxc2 {[%emt 0:14:55]} 1/2-1/2

[Event "World Senior chT-65 2019"]
[Site "Rhodes"]
[Date "2019.04.18"]
[Round "3.2"]
[White "Balashov, Yuri S"]
[Black "Povah, Nigel E"]
[Result "1/2-1/2"]
[ECO "E50"]
[WhiteElo "2470"]
[BlackElo "2319"]
[PlyCount "61"]
[EventDate "2019.04.16"]
[EventType "team-tourn"]
[EventCountry "GRE"]
[TimeControl "40/5400+30:1800+30"]

1. d4 {[%emt 0:00:00]} d5 {[%emt 0:00:00]} 2. Nf3 {[%emt 0:00:00]} Nf6 {[%emt 0:00:12]} 3. c4 {[%emt 0:00:07]} e6 {[%emt 0:00:10]} 4. Nc3 {[%emt 0:00:10]} Bb4 {[%emt 0:00:19]} 5. e3 {[%emt 0:00:41]} O-O {[%emt 0:00:33]} 6. Be2 {[%emt 0:00:32]} b6 {[%emt 0:02:42]} 7. O-O {[%emt 0:00:53]} Ba6 {[%emt 0:01:29]} 8. cxd5 {[%emt 0:10:29]} exd5 {[%emt 0:01:03]} 9. Bxa6 {[%emt 0:02:49]} Nxa6 {[%emt 0:00:07]} 10. Qa4 {[%emt 0:04:05]} Qc8 {[%emt 0:01:47]} 11. Bd2 {[%emt 0:04:52]} Qb7 {[%emt 0:01:56]} 12. Rac1 {[%emt 0:03:46]} Rfe8 {[%emt 0:06:33]} 13. a3 {[%emt 0:12:28]} Bf8 {[%emt 0:08:50]} 14. b4 {[%emt 0:01:03]} c5 {[%emt 0:01:37]} 15. bxc5 {[%emt 0:00:51]} bxc5 {[%emt 0:03:29]} 16. Rb1 {[%emt 0:03:19]} Qc8 {[%emt 0:00:49]} 17. Rfc1 {[%emt 0:01:19]} c4 {[%emt 0:02:38]} 18. e4 {[%emt 0:11:33]} dxe4 {[%emt 0:16:54]} 19. Ne5 {[%emt 0:00:06]} Nc7 {[%emt 0:13:11]} 20. Qxc4 {[%emt 0:02:59]} Ne6 {[%emt 0:03:12]} 21. Qa2 {[%emt 0:00:44]} Nxd4 {[%emt 0:10:26]} 22. Nxf7 {[%emt 0:18:52]} Qe6 {[%emt 0:01:47]} 23. Qxe6 {[%emt 0:00:20]} Nxe6 {[%emt 0:00:26]} 24. Ng5 {[%emt 0:00:38]} Bxa3 {[%emt 0:01:50]} 25. Re1 {[%emt 0:00:18]} Rad8 {[%emt 0:11:24]} 26. Ngxe4 {[%emt 0:01:26]} Nxe4 {[%emt 0:00:28]} 27. Nxe4 {[%emt 0:00:06]} Nc5 {[%emt 0:01:10]} 28. Ba5 {[%emt 0:02:04]} Rb8 {[%emt 0:02:48]} 29. Rxb8 {[%emt 0:00:54]} Rxb8 {[%emt 0:00:05]} 30. Bc7 {[%emt 0:00:54]} Ra8 {[%emt 0:04:39]} 31. Bd6 {[%emt 0:03:11]} 1/2-1/2

[Event "World Senior chT-65 2019"]
[Site "Rhodes"]
[Date "2019.04.18"]
[Round "3.3"]
[White "Stebbings, Anthony J"]
[Black "Rashkovsky, Nukhim N"]
[Result "1/2-1/2"]
[ECO "E40"]
[WhiteElo "2281"]
[BlackElo "2488"]
[Annotator "ChessBase"]
[PlyCount "38"]
[EventDate "2019.04.16"]
[EventType "team-tourn"]
[EventCountry "GRE"]
[SourceTitle "playchess.com"]
[Source "ChessBase"]
[SourceQuality "1"]
[WhiteTeam "England"]
[BlackTeam "Russia"]
[WhiteTeamCountry "ENG"]
[BlackTeamCountry "RUS"]
[TimeControl "40/5400+30:1800+30"]

1. d4 {[%emt 0:00:00]} Nf6 {[%emt 0:00:00]} 2. c4 {[%emt 0:00:00]} e6 {[%emt 0:00:00]} 3. Nc3 {[%emt 0:00:00]} Bb4 {[%emt 0:00:00]} 4. e3 {[%emt 0:00:00]} Nc6 {[%emt 0:00:00]} 5. Nge2 {[%emt 0:00:00]} d5 {[%emt 0:00:14]} 6. a3 {[%emt 0:00:09]} Bd6 {[%emt 0:00:27]} 7. cxd5 {[%emt 0:00:17]} exd5 {[%emt 0:00:09]} 8. g3 {[%emt 0:00:09]} a6 {[%emt 0:01:44]} 9. Bg2 {[%emt 0:00:20]} Ne7 {[%emt 0:00:06]} 10. O-O {[%emt 0:02:36]} h5 {[%emt 0:01:23]} 11. h3 {[%emt 0:00:19]} Be6 {[%emt 0:03:55]} 12. Nf4 {[%emt 0:10:35]} Bxf4 {[%emt 0:00:16]} 13. exf4 {[%emt 0:00:17]} Qd7 {[%emt 0:01:04]} 14. Kh2 {[%emt 0:00:30]} Kf8 {[%emt 0:21:37]} 15. a4 {[%emt 0:07:07]} a5 {[%emt 0:03:25]} 16. b3 {[%emt 0:01:40]} Nf5 {[%emt 0:01:24]} 17. Ba3+ {[%emt 0:00:17]} Kg8 {[%emt 0:00:05]} 18. Qd3 {[%emt 0:10:22]} c6 {[%emt 0:03:31]} 19. Rfe1 {[%emt 0:01:14]} Nd6 {[%emt 0:02:27]} 1/2-1/2

[Event "World Senior chT-65 2019"]
[Site "Rhodes"]
[Date "2019.04.18"]
[Round "3.4"]
[White "Zhelnin, Vladimir V"]
[Black "Snape, Ian L"]
[Result "1/2-1/2"]
[ECO "B70"]
[WhiteElo "2429"]
[BlackElo "2154"]
[PlyCount "114"]
[EventDate "2019.04.16"]
[EventType "team-tourn"]
[EventCountry "GRE"]
[TimeControl "40/5400+30:1800+30"]

1. e4 {[%emt 0:00:00]} c5 {[%emt 0:00:00]} 2. Nf3 {[%emt 0:00:00]} d6 {[%emt 0:00:00]} 3. d4 {[%emt 0:00:46]} cxd4 {[%emt 0:00:00]} 4. Nxd4 {[%emt 0:00:30]} Nf6 {[%emt 0:00:05]} 5. Nc3 {[%emt 0:00:33]} g6 {[%emt 0:00:29]} 6. Be2 {[%emt 0:07:45]} Bg7 {[%emt 0:00:15]} 7. O-O {[%emt 0:02:50]} O-O {[%emt 0:00:08]} 8. Bg5 {[%emt 0:00:58]} Nc6 {[%emt 0:00:34]} 9. Nb3 {[%emt 0:00:17]} a6 {[%emt 0:01:34]} 10. Re1 {[%emt 0:01:51]} b5 {[%emt 0:00:52]} 11. a3 {[%emt 0:00:11]} Bb7 {[%emt 0:03:04]} 12. Bf1 {[%emt 0:01:19]} Na5 {[%emt 0:10:11]} 13. Nxa5 {[%emt 0:04:44]} Qxa5 {[%emt 0:00:13]} 14. Qd2 {[%emt 0:04:18]} Rac8 {[%emt 0:22:32]} 15. f3 {[%emt 0:10:46]} Rfd8 {[%emt 0:06:05]} 16. Rad1 {[%emt 0:00:56]} Qc7 {[%emt 0:05:55]} 17. Bd3 {[%emt 0:12:41]} Re8 {[%emt 0:02:11]} 18. Bh6 {[%emt 0:11:46]} Qc5+ {[%emt 0:03:01]} 19. Kh1 {[%emt 0:02:00]} Bh8 {[%emt 0:02:57]} 20. Be3 {[%emt 0:02:37]} Qc7 {[%emt 0:00:28]} 21. a4 {[%emt 0:01:51]} b4 {[%emt 0:00:52]} 22. Na2 {[%emt 0:00:12]} a5 {[%emt 0:01:56]} 23. c3 {[%emt 0:00:50]} b3 {[%emt 0:01:34]} 24. Nc1 {[%emt 0:00:10]} Bc6 {[%emt 0:00:19]} 25. Bc4 {[%emt 0:10:31]} Bxa4 {[%emt 0:01:59]} 26. Bxb3 {[%emt 0:00:07]} Bxb3 {[%emt 0:07:01]} 27. Nxb3 {[%emt 0:00:01]} Rb8 {[%emt 0:03:34]} 28. Nd4 {[%emt 0:00:32]} Qb7 {[%emt 0:00:55]} 29. Rb1 {[%emt 0:00:58]} a4 {[%emt 0:00:52]} 30. Nc2 {[%emt 0:02:47]} Nd7 {[%emt 0:01:37]} 31. Nb4 {[%emt 0:05:19]} Nc5 {[%emt 0:00:24]} 32. Red1 {[%emt 0:06:49]} Bg7 {[%emt 0:01:40]} 33. Kg1 {[%emt 0:01:39]} h5 {[%emt 0:03:01]} 34. Bxc5 {[%emt 0:01:50]} dxc5 {[%emt 0:00:06]} 35. Nc2 {[%emt 0:00:16]} Qc7 {[%emt 0:01:23]} 36. Na3 {[%emt 0:00:22]} Be5 {[%emt 0:03:14]} 37. g3 {[%emt 0:01:28]} h4 {[%emt 0:01:01]} 38. f4 {[%emt 0:00:42]} Bg7 {[%emt 0:00:19]} 39. Nc4 {[%emt 0:01:52]} Red8 {[%emt 0:00:53]} 40. Qe2 {[%emt 0:00:00]} hxg3 {[%emt 0:00:00]} 41. hxg3 {[%emt 0:00:36]} Qc6 {[%emt 0:04:43]} 42. Kf2 {[%emt 0:12:26]} Rd7 {[%emt 0:02:13]} 43. Rxd7 {[%emt 0:03:27]} Qxd7 {[%emt 0:00:29]} 44. Rd1 {[%emt 0:00:21]} Qh3 {[%emt 0:00:40]} 45. Rd2 {[%emt 0:01:35]} g5 {[%emt 0:21:44]} 46. f5 {[%emt 0:02:35]} a3 {[%emt 0:00:00]} 47. Nxa3 {[%emt 0:10:26]} Be5 {[%emt 0:00:00]} 48. Qe3 {[%emt 0:04:03]} Qh2+ {[%emt 0:00:00]} 49. Kf1 {[%emt 0:09:50]} Qh3+ {[%emt 0:04:50]} 50. Ke2 {[%emt 0:03:51]} f6 {[%emt 0:02:01]} 51. Qxc5 {[%emt 0:02:30]} Bxg3 {[%emt 0:05:12]} 52. Qd5+ {[%emt 0:00:00]} Kf8 {[%emt 0:00:50]} 53. Nc4 {[%emt 0:00:47]} Bf4 {[%emt 0:00:39]} 54. Rd4 {[%emt 0:02:19]} Qg4+ {[%emt 0:01:47]} 55. Ke1 {[%emt 0:00:00]} Qg1+ {[%emt 0:02:05]} 56. Ke2 {[%emt 0:00:00]} Qg4+ {[%emt 0:00:08]} 57. Ke1 {[%emt 0:00:00]} Qg1+ {[%emt 0:00:35]} 1/2-1/2

[Event "World Senior chT-65 2019"]
[Site "Rhodes"]
[Date "2019.04.18"]
[Round "3.5"]
[White "Knaak, Rainer"]
[Black "Faibisovich, Vadim Z"]
[Result "1/2-1/2"]
[ECO "D00"]
[WhiteElo "2482"]
[BlackElo "2302"]
[PlyCount "99"]
[EventDate "2019.04.16"]
[EventType "team-tourn"]
[EventCountry "GRE"]
[TimeControl "40/5400+30:1800+30"]

1. d4 {[%emt 0:00:00]} Nf6 {[%emt 0:00:00]} 2. Bf4 {[%emt 0:00:00]} d5 {[%emt 0:01:19]} 3. e3 {[%emt 0:00:01]} c5 {[%emt 0:03:46]} 4. dxc5 {[%emt 0:01:42]} Qa5+ {[%emt 0:02:47]} 5. Nc3 {[%emt 0:02:37]} Qxc5 {[%emt 0:03:37]} 6. Bxb8 {[%emt 0:04:03]} Rxb8 {[%emt 0:00:40]} 7. Bb5+ {[%emt 0:00:06]} Bd7 {[%emt 0:18:44]} 8. Bxd7+ {[%emt 0:00:09]} Kxd7 {[%emt 0:00:28]} 9. Nf3 {[%emt 0:01:21]} Ke8 {[%emt 0:01:32]} 10. O-O {[%emt 0:35:48]} e6 {[%emt 0:01:17]} 11. Qd3 {[%emt 0:00:43]} Qc4 {[%emt 0:10:33]} 12. Qxc4 {[%emt 0:01:38]} dxc4 {[%emt 0:00:09]} 13. Ne5 {[%emt 0:00:22]} Bb4 {[%emt 0:09:18]} 14. Nb5 {[%emt 0:17:59]} a6 {[%emt 0:02:47]} 15. a3 {[%emt 0:04:17]} Bc5 {[%emt 0:09:56]} 16. Nc3 {[%emt 0:00:14]} b5 {[%emt 0:02:00]} 17. Rfd1 {[%emt 0:00:06]} Rc8 {[%emt 0:00:19]} 18. Rd2 {[%emt 0:06:31]} Ke7 {[%emt 0:01:54]} 19. Rad1 {[%emt 0:00:06]} Rc7 {[%emt 0:00:23]} 20. h4 {[%emt 0:03:41]} h5 {[%emt 0:02:12]} 21. Kf1 {[%emt 0:00:09]} b4 {[%emt 0:05:13]} 22. axb4 {[%emt 0:03:09]} Bxb4 {[%emt 0:00:10]} 23. Rd4 {[%emt 0:01:01]} Bxc3 {[%emt 0:06:12]} 24. bxc3 {[%emt 0:00:05]} Rhc8 {[%emt 0:00:43]} 25. e4 {[%emt 0:02:46]} Rc5 {[%emt 0:03:20]} 26. Nd7 {[%emt 0:01:35]} R5c6 {[%emt 0:05:11]} 27. f4 {[%emt 0:00:28]} R8c7 {[%emt 0:01:53]} 28. Ne5 {[%emt 0:00:07]} Rc5 {[%emt 0:00:12]} 29. Ke2 {[%emt 0:00:11]} a5 {[%emt 0:00:36]} 30. Kf3 {[%emt 0:00:38]} g6 {[%emt 0:01:44]} 31. Rd8 {[%emt 0:04:11]} Ng4 {[%emt 0:01:28]} 32. Nxg4 {[%emt 0:02:38]} hxg4+ {[%emt 0:00:08]} 33. Kxg4 {[%emt 0:00:10]} Ra7 {[%emt 0:00:04]} 34. Rb8 {[%emt 0:00:44]} a4 {[%emt 0:00:26]} 35. Ra1 {[%emt 0:00:57]} a3 {[%emt 0:00:14]} 36. Ra2 {[%emt 0:00:28]} Kf6 {[%emt 0:02:06]} 37. Kf3 {[%emt 0:00:14]} e5 {[%emt 0:01:18]} 38. Rb6+ {[%emt 0:00:17]} Ke7 {[%emt 0:00:12]} 39. f5 {[%emt 0:02:10]} gxf5 {[%emt 0:01:04]} 40. exf5 {[%emt 0:00:00]} Rd5 {[%emt 0:00:00]} 41. g4 {[%emt 0:02:57]} Rd1 {[%emt 0:01:27]} 42. f6+ {[%emt 0:07:43]} Kd7 {[%emt 0:00:39]} 43. g5 {[%emt 0:00:15]} Rh1 {[%emt 0:03:58]} 44. Kg4 {[%emt 0:15:22]} e4 {[%emt 0:02:09]} 45. Rb4 {[%emt 0:00:15]} e3 {[%emt 0:02:36]} 46. Kf3 {[%emt 0:00:16]} Rxh4 {[%emt 0:02:45]} 47. Kxe3 {[%emt 0:00:11]} Ra5 {[%emt 0:01:44]} 48. Rb7+ {[%emt 0:00:53] Ra7 [%emt 00:00:54] Rb6 [%emt 00:00:04]} Ke6 {[%emt 0:01:00]} 49. Rb4 {[%emt 0:00:30]} Rh5 {[%emt 0:00:35]} 50. Ke4 {[%emt 0:00:04] Ke5+} 1/2-1/2

[Event "World Senior chT-65 2019"]
[Site "Rhodes"]
[Date "2019.04.18"]
[Round "3.6"]
[White "Karasev, Vladimir I"]
[Black "Vogt, Lothar"]
[Result "1/2-1/2"]
[ECO "B53"]
[WhiteElo "2281"]
[BlackElo "2362"]
[Annotator "NA"]
[PlyCount "29"]
[EventDate "2019.04.16"]
[EventType "team-tourn"]
[EventCountry "GRE"]
[SourceTitle "playchess.com"]
[Source "ChessBase"]
[SourceQuality "1"]
[WhiteTeam "Russia"]
[BlackTeam "Germany"]
[WhiteTeamCountry "RUS"]
[BlackTeamCountry "GER"]
[TimeControl "40/5400+30:1800+30"]

1. e4 {[%emt 0:00:00]} c5 {[%emt 0:00:00]} 2. Nf3 {[%emt 0:00:00]} d6 {[%emt 0:01:26]} 3. d4 {[%emt 0:00:00]} cxd4 {[%emt 0:00:05]} 4. Qxd4 {[%emt 0:00:00]} a6 {[%emt 0:01:23]} 5. c4 {[%emt 0:02:52]} Nc6 {[%emt 0:00:31]} 6. Qd2 {[%emt 0:00:34]} Nf6 {[%emt 0:00:55]} 7. Nc3 {[%emt 0:00:04]} g6 {[%emt 0:03:31]} 8. b3 {[%emt 0:00:21]} Bg7 {[%emt 0:00:20]} 9. Bb2 {[%emt 0:00:14]} O-O {[%emt 0:00:29]} 10. Be2 {[%emt 0:00:48]} Qa5 {[%emt 0:02:58]} 11. Nd5 {[%emt 0:07:04]} Qxd2+ {[%emt 0:02:20]} 12. Nxd2 {[%emt 0:00:02]} Nd7 {[%emt 0:05:01]} 13. Bxg7 {[%emt 0:02:56]} Kxg7 {[%emt 0:00:03]} 14. Nf3 {[%emt 0:02:47]} Nc5 {[%emt 0:05:03]} 15. Nc3 {[%emt 0:02:39]} 1/2-1/2

[Event "World Senior chT-65 2019"]
[Site "Rhodes"]
[Date "2019.04.18"]
[Round "3.7"]
[White "Kiefer, Gerhard"]
[Black "Shushpanov, Vladimir"]
[Result "0-1"]
[ECO "B15"]
[WhiteElo "2279"]
[BlackElo "2180"]
[PlyCount "102"]
[EventDate "2019.04.16"]
[EventType "team-tourn"]
[EventCountry "GRE"]
[TimeControl "40/5400+30:1800+30"]

1. e4 {[%emt 0:00:00]} c6 {[%emt 0:00:00]} 2. d4 {[%emt 0:00:00]} d5 {[%emt 0:00:00]} 3. Nc3 {[%emt 0:00:00]} b5 {[%emt 0:00:02]} 4. Bd3 {[%emt 0:18:54]} b4 {[%emt 0:01:32]} 5. Na4 {[%emt 0:00:09]} dxe4 {[%emt 0:00:41]} 6. Bxe4 {[%emt 0:00:05]} Nf6 {[%emt 0:00:39]} 7. Bf3 {[%emt 0:00:05]} Bf5 {[%emt 0:01:41]} 8. Ne2 {[%emt 0:04:38]} e6 {[%emt 0:00:30]} 9. Ng3 {[%emt 0:00:23]} Bg6 {[%emt 0:00:28]} 10. O-O {[%emt 0:03:35]} Be7 {[%emt 0:02:51]} 11. c4 {[%emt 0:05:15]} bxc3 {[%emt 0:10:14]} 12. bxc3 {[%emt 0:00:15]} O-O {[%emt 0:00:51]} 13. Re1 {[%emt 0:12:23]} Qc7 {[%emt 0:06:29]} 14. Qe2 {[%emt 0:09:49]} Nbd7 {[%emt 0:02:50]} 15. Qa6 {[%emt 0:01:54]} Nb6 {[%emt 0:10:21]} 16. Nc5 {[%emt 0:10:14]} Nbd5 {[%emt 0:04:02]} 17. Bd2 {[%emt 0:04:36]} Qb6 {[%emt 0:03:42]} 18. Qxb6 {[%emt 0:04:32]} axb6 {[%emt 0:00:28]} 19. Nce4 {[%emt 0:00:02]} Nxe4 {[%emt 0:02:01]} 20. Nxe4 {[%emt 0:00:51]} Ra4 {[%emt 0:01:21]} 21. Bd1 {[%emt 0:00:37]} Ra3 {[%emt 0:03:06]} 22. Bb3 {[%emt 0:00:10]} Rfa8 {[%emt 0:00:50]} 23. f3 {[%emt 0:05:34]} h6 {[%emt 0:06:05]} 24. Rab1 {[%emt 0:00:10]} b5 {[%emt 0:01:24]} 25. Rb2 {[%emt 0:01:07]} Nb6 {[%emt 0:02:35]} 26. Bc1 {[%emt 0:04:38]} R3a7 {[%emt 0:02:07]} 27. Be3 {[%emt 0:01:02]} Nd5 {[%emt 0:00:45]} 28. Bd2 {[%emt 0:00:11]} Nf6 {[%emt 0:02:09]} 29. Rc2 {[%emt 0:02:25]} c5 {[%emt 0:03:51]} 30. dxc5 {[%emt 0:02:21]} Nxe4 {[%emt 0:00:56]} 31. fxe4 {[%emt 0:00:09]} Bxc5+ {[%emt 0:00:20]} 32. Kh1 {[%emt 0:04:29]} Rd7 {[%emt 0:00:56]} 33. Bf4 {[%emt 0:02:14]} Bxe4 {[%emt 0:01:23]} 34. Rd2 {[%emt 0:00:15]} Rxd2 {[%emt 0:00:44]} 35. Bxd2 {[%emt 0:00:14]} Bd5 {[%emt 0:00:21]} 36. h3 {[%emt 0:01:01]} Bxb3 {[%emt 0:00:37]} 37. axb3 {[%emt 0:00:02]} Ra2 {[%emt 0:00:56]} 38. Rd1 {[%emt 0:01:31]} Rc2 {[%emt 0:01:31]} 39. Be1 {[%emt 0:01:37]} f5 {[%emt 0:00:41]} 40. b4 {[%emt 0:00:00]} Be3 {[%emt 0:00:00]} 41. g3 {[%emt 0:05:15]} Kf7 {[%emt 0:01:34]} 42. Ra1 {[%emt 0:04:19]} Re2 {[%emt 0:00:32]} 43. c4 {[%emt 0:00:59]} bxc4 {[%emt 0:00:26]} 44. Bc3 {[%emt 0:00:09]} Rc2 {[%emt 0:01:16]} 45. Be5 {[%emt 0:00:04]} Rc1+ {[%emt 0:01:26]} 46. Rxc1 {[%emt 0:00:10]} Bxc1 {[%emt 0:00:06]} 47. Kg2 {[%emt 0:00:58]} g6 {[%emt 0:01:26]} 48. Kf3 {[%emt 0:00:07]} Ke7 {[%emt 0:00:18]} 49. b5 {[%emt 0:00:57]} Kd7 {[%emt 0:01:15]} 50. Ke2 {[%emt 0:01:45]} Ba3 {[%emt 0:00:33]} 51. Kd2 {[%emt 0:00:19]} Bd6 {[%emt 0:00:33]} 0-1

[Event "World Senior chT-65 2019"]
[Site "Rhodes"]
[Date "2019.04.18"]
[Round "3.8"]
[White "Blechzin, Igor"]
[Black "Buchal, Stephan"]
[Result "1/2-1/2"]
[ECO "E68"]
[WhiteElo "2210"]
[BlackElo "2283"]
[Annotator "NA"]
[PlyCount "27"]
[EventDate "2019.04.16"]
[EventType "team-tourn"]
[EventCountry "GRE"]
[SourceTitle "playchess.com"]
[Source "ChessBase"]
[SourceQuality "1"]
[WhiteTeam "Russia"]
[BlackTeam "Germany"]
[WhiteTeamCountry "RUS"]
[BlackTeamCountry "GER"]
[TimeControl "40/5400+30:1800+30"]

1. c4 {[%emt 0:00:00]} g6 {[%emt 0:00:00]} 2. Nf3 {[%emt 0:00:01]} Bg7 {[%emt 0:00:00]} 3. d4 {[%emt 0:00:08]} d6 {[%emt 0:00:10]} 4. g3 {[%emt 0:00:09]} Nf6 {[%emt 0:00:10]} 5. Bg2 {[%emt 0:00:12]} O-O {[%emt 0:00:17]} 6. O-O {[%emt 0:00:16]} Nc6 {[%emt 0:00:37]} 7. Nc3 {[%emt 0:00:45]} e5 {[%emt 0:01:04]} 8. d5 {[%emt 0:02:47]} Nb8 {[%emt 0:00:23]} 9. c5 {[%emt 0:06:27]} Na6 {[%emt 0:04:49]} 10. cxd6 {[%emt 0:00:12]} cxd6 {[%emt 0:00:03]} 11. e4 {[%emt 0:00:36]} Nc5 {[%emt 0:02:52]} 12. Ne1 {[%emt 0:06:51]} a5 {[%emt 0:04:29]} 13. Nd3 {[%emt 0:05:17]} Nfd7 {[%emt 0:06:15]} 14. Be3 {[%emt 0:12:01]} 1/2-1/2